bitfinex-derivatives/quotes_BTCF0:USTF0_20241218
["timestamp","ask_amount","ask_price","bid_price","bid_amount"]
[1734522323828,0.76005364,104850.0,104840.0,0.01064048]
[1734522324030,0.8192307,104850.0,104840.0,0.00564048]
[1734522324335,0.047703,104830.0,104820.0,0.39853029]
[1734522324631,0.48750388,104830.0,104820.0,0.39853029]
[1734522324831,0.48758388,104830.0,104820.0,0.39853029]
[1734522325428,0.48758388,104830.0,104820.0,0.40053029]
[1734522325630,0.48758388,104830.0,104820.0,0.40405059]
[1734522325831,0.48858388,104830.0,104820.0,0.04825059]
[1734522326343,0.48858388,104830.0,104820.0,0.40905059]
[1734522326830,0.48858388,104830.0,104820.0,0.0437203]
[1734522328123,0.48858388,104830.0,104820.0,0.4045203]
[1734522328319,0.48858388,104830.0,104820.0,0.0437203]
[1734522328534,0.48858388,104830.0,104820.0,0.45675859]
[1734522328535,0.36780001,104830.0,104820.0,0.45675859]
[1734522328722,0.35248,104830.0,104820.0,0.56992918]
[1734522328925,0.35348,104830.0,104820.0,0.4825283]
[1734522329126,0.44088088,104830.0,104820.0,0.48505859]
[1734522329433,0.8901767,104830.0,104820.0,0.00805059]
[1734522329630,0.047708,104820.0,104810.0,0.00465232]
[1734522329933,0.22258976,104820.0,104810.0,0.00465232]
[1734522330135,0.22258976,104820.0,104810.0,0.00011913]
[1734522330835,0.13518888,104820.0,104810.0,0.36091913]
[1734522331730,0.13518888,104820.0,104810.0,0.36191913]
[1734522332325,0.13518888,104820.0,104810.0,0.36391913]
[1734522333925,1.04158976,104820.0,104800.0,0.0963]
[1734522334135,0.047717,104800.0,104790.0,0.22647882]
[1734522334430,0.58339876,104800.0,104790.0,0.23198924]
[1734522334832,0.49599788,104800.0,104790.0,0.23198924]
[1734522335032,0.49608689,104800.0,104790.0,0.23198924]
[1734522335728,0.49708689,104800.0,104790.0,0.23198924]
[1734522335925,0.49808689,104800.0,104790.0,0.23198924]
[1734522336439,0.49808689,104800.0,104790.0,0.00551042]
[1734522336440,0.67104746,104800.0,104790.0,0.00551042]
[1734522337537,0.77214746,104800.0,104790.0,0.00551042]
[1734522338147,0.68658777,104800.0,104790.0,0.00551042]
[1734522338337,0.68658777,104800.0,104750.0,0.22647882]
[1734522338338,0.96358534,104800.0,104750.0,0.22647882]
[1734522338539,0.85673588,104760.0,104750.0,0.23007882]
[1734522338842,0.85692107,104760.0,104750.0,0.23007882]
[1734522339739,0.85892107,104760.0,104750.0,0.0036]
[1734522341347,0.85992107,104760.0,104750.0,0.0036]
[1734522341543,0.85992107,104760.0,104750.0,0.0070461]
[1734522342546,0.047739,104750.0,104740.0,0.01008763]
[1734522342838,0.84853988,104750.0,104740.0,0.01008763]
[1734522343043,0.84861988,104750.0,104740.0,0.01008763]
[1734522344333,0.84961988,104750.0,104740.0,0.01008763]
[1734522345045,0.85161988,104750.0,104740.0,0.01008763]
[1734522346544,0.764219,104750.0,104740.0,0.01008763]
[1734522346744,0.85161988,104750.0,104740.0,0.01008763]
[1734522347642,0.764219,104750.0,104740.0,0.01008763]
[1734522348041,0.85161988,104750.0,104740.0,0.01008763]
[1734522348345,0.86597989,104750.0,104740.0,0.01008763]
[1734522348854,0.86597989,104750.0,104740.0,0.01560726]
[1734522349751,0.86597989,104750.0,104740.0,0.01562377]
[1734522351037,0.77857901,104750.0,104740.0,0.01562377]
[1734522351237,0.86597989,104750.0,104740.0,0.08552377]
[1734522351645,0.86597989,104750.0,104740.0,0.09107717]
[1734522353639,0.86597989,104750.0,104740.0,0.08552377]
[1734522353845,0.86597989,104750.0,104740.0,0.0910748]
[1734522354143,0.86597989,104750.0,104740.0,0.1388188]
[1734522354448,0.86597989,104750.0,104740.0,0.14228746]
[1734522355641,0.77857901,104750.0,104740.0,0.14228746]
[1734522355951,0.411619,104750.0,104740.0,0.14228746]
[1734522356441,0.411619,104750.0,104740.0,1.64228746]
[1734522356639,0.050819,104750.0,104740.0,1.64228535]
[1734522358645,0.02933461,104750.0,104740.0,1.64228535]
[1734522358950,0.02933461,104750.0,104740.0,1.64228035]
[1734522358951,0.047739,104750.0,104740.0,1.64228035]
[1734522359342,0.047739,104750.0,104740.0,1.65163201]
[1734522359542,0.047739,104750.0,104740.0,1.65154858]
[1734522360540,0.41961068,104760.0,104750.0,0.047739]
[1734522360745,0.41961068,104760.0,104750.0,0.45087315]
[1734522361649,0.41961068,104760.0,104750.0,0.45091315]
[1734522361848,0.42061068,104760.0,104750.0,0.45091315]
[1734522362055,0.42161068,104760.0,104750.0,0.45091315]
[1734522362856,0.78241068,104760.0,104750.0,0.09011315]
[1734522363156,0.42161068,104760.0,104750.0,0.09011315]
[1734522365350,0.42161068,104760.0,104750.0,0.09006568]
[1734522366950,0.42161068,104760.0,104750.0,0.3165445]
[1734522367156,0.37387368,104760.0,104750.0,0.3165445]
[1734522367358,0.35482519,104760.0,104750.0,0.3165445]
[1734522367648,0.35482519,104760.0,104750.0,0.41404658]
[1734522367649,0.00210519,104760.0,104750.0,0.41404658]
[1734522367851,0.00210519,104760.0,104750.0,0.77484658]
[1734522368249,0.00210519,104760.0,104750.0,1.27034567]
[1734522369256,0.00210519,104760.0,104750.0,1.03376565]
[1734522369556,0.00210519,104760.0,104750.0,1.33376565]
[1734522370659,0.04984019,104760.0,104750.0,0.92537698]
[1734522370864,0.13724107,104760.0,104750.0,0.93547818]
[1734522371363,0.04984019,104760.0,104750.0,0.92537698]
[1734522371751,0.41064019,104760.0,104750.0,0.92537698]
[1734522371952,0.04984019,104760.0,104750.0,0.92537698]
[1734522372560,0.04984019,104760.0,104750.0,0.93547818]
[1734522372853,0.04984019,104760.0,104750.0,0.92537698]
[1734522373046,0.41064019,104760.0,104750.0,0.92537698]
[1734522373451,0.41064019,104760.0,104750.0,0.58556477]
[1734522373845,0.04984019,104760.0,104750.0,0.58556477]
[1734522374049,0.41064019,104760.0,104750.0,0.58556477]
[1734522374466,0.04984019,104760.0,104750.0,0.58556477]
[1734522374666,0.04984019,104760.0,104750.0,0.31728781]
[1734522375561,0.58149257,104770.0,104750.0,0.31728781]
[1734522375562,0.08555969,104770.0,104750.0,1.04902379]
[1734522375860,0.13329369,104770.0,104760.0,0.047775]
[1734522376058,0.13329369,104770.0,104760.0,0.05654735]
[1734522376655,0.13338563,104770.0,104760.0,0.05114863]
[1734522376961,0.04782594,104770.0,104760.0,1.77848509]
[1734522377157,0.04982594,104770.0,104760.0,1.77848509]
[1734522377461,0.41062594,104770.0,104760.0,1.77848509]
[1734522377661,0.04982594,104770.0,104760.0,1.77848509]
[1734522377856,0.04882594,104770.0,104760.0,1.77848509]
[1734522378158,0.41062594,104770.0,104760.0,1.77848509]
[1734522378357,0.41062594,104770.0,104760.0,0.27848509]
[1734522378756,0.04982594,104770.0,104760.0,0.27848509]
[1734522378965,0.41062594,104770.0,104760.0,0.27848509]
[1734522379161,0.13538563,104770.0,104760.0,0.27848509]
[1734522379355,0.49618563,104770.0,104760.0,0.27848509]
[1734522382767,0.49618563,104770.0,104760.0,0.27847655]
[1734522383767,0.49618563,104770.0,104760.0,0.28386686]
[1734522383966,0.61031119,104770.0,104760.0,0.56740196]
[1734522384652,0.61031119,104770.0,104760.0,0.51966696]
[1734522384653,0.69771207,104770.0,104760.0,0.51966696]
[1734522384955,0.79971207,104770.0,104760.0,0.51966696]
[1734522385158,0.79971207,104770.0,104760.0,0.23613186]
[1734522386651,0.74276126,104770.0,104760.0,0.23613186]
[1734522388060,0.74276126,104770.0,104760.0,0.0087954]
[1734522388261,0.75708127,104770.0,104760.0,0.0087954]
[1734522389166,0.78568004,104770.0,104760.0,0.0087954]
[1734522390267,0.78568004,104770.0,104750.0,0.22733646]
[1734522390467,0.49593588,104760.0,104750.0,0.22733646]
[1734522390668,0.047739,104750.0,104740.0,0.23742409]
[1734522390869,0.49593988,104750.0,104740.0,0.23742409]
[1734522391171,0.49601988,104750.0,104740.0,0.23742409]
[1734522391570,0.60879119,104750.0,104740.0,0.23742409]
[1734522391759,0.60879119,104750.0,104740.0,0.22742409]
[1734522392173,0.96959119,104750.0,104740.0,0.22742409]
[1734522392969,0.97159119,104750.0,104740.0,0.22742409]
[1734522393355,0.20225219,104750.0,104740.0,0.36256897]
[1734522393569,0.20225219,104750.0,104740.0,0.46726897]
[1734522393754,0.20225219,104750.0,104740.0,2.32806897]
[1734522394570,0.02315818,104760.0,104740.0,2.98514886]
[1734522394769,9.194e-05,104770.0,104750.0,0.58334076]
[1734522394965,0.15298014,104780.0,104770.0,0.04773]
[1734522395265,0.15298014,104780.0,104770.0,0.79597088]
[1734522395470,0.15298014,104780.0,104770.0,0.89777088]
[1734522395962,0.01008804,104780.0,104770.0,1.50011547]
[1734522396155,0.01108804,104780.0,104770.0,1.50011547]
[1734522396560,0.01008804,104780.0,104770.0,1.50011547]
[1734522396764,0.01008804,104780.0,104770.0,1.50211547]
[1734522397869,0.01008804,104780.0,104770.0,1.50311547]
[1734522398969,0.01008804,104780.0,104770.0,1.45406346]
[1734522399573,0.01008804,104780.0,104770.0,1.73792501]
[1734522400370,0.01008804,104780.0,104770.0,1.74347187]
[1734522400870,0.01008804,104780.0,104770.0,2.95262017]
[1734522401763,1e-08,104780.0,104770.0,2.95262017]
[1734522402371,1e-08,104780.0,104770.0,2.95608154]
[1734522403372,0.047719,104800.0,104770.0,3.29589375]
[1734522403566,0.047719,104800.0,104790.0,0.047721]
[1734522403766,0.047719,104800.0,104790.0,0.05676923]
[1734522404462,0.04779628,104800.0,104790.0,0.05676923]
[1734522405568,0.04879628,104800.0,104790.0,0.05676923]
[1734522406071,0.04979628,104800.0,104790.0,0.05676923]
[1734522407474,0.04979628,104800.0,104790.0,0.41756923]
[1734522407673,0.04979628,104800.0,104790.0,0.05676923]
[1734522408676,0.04979628,104800.0,104790.0,0.05674466]
[1734522411677,0.04979628,104800.0,104790.0,0.047761]
[1734522412168,0.04979628,104800.0,104790.0,0.080761]
[1734522412373,0.04979628,104800.0,104790.0,0.08975349]
[1734522412677,0.04979628,104800.0,104790.0,0.09941173]
[1734522412885,0.04979628,104800.0,104790.0,0.1049456]
[1734522413372,0.04979628,104800.0,104790.0,0.19234648]
[1734522413768,0.04979628,104800.0,104790.0,0.1049456]
[1734522421082,0.04979628,104800.0,104790.0,1.6049456]
[1734522422072,0.04979628,104800.0,104790.0,1.83164675]
[1734522422767,0.04979628,104800.0,104790.0,1.82611248]
[1734522423474,0.04979628,104800.0,104790.0,1.86081248]
[1734522423475,0.00207728,104800.0,104790.0,1.86081248]
[1734522423675,0.761232,104810.0,104790.0,2.30901336]
[1734522423874,0.78071189,104810.0,104800.0,0.047717]
[1734522424075,0.400432,104810.0,104800.0,0.14414983]
[1734522424384,0.65369014,104820.0,104810.0,0.047712]
[1734522424681,0.65379546,104820.0,104810.0,0.05674395]
[1734522425681,0.65479546,104820.0,104810.0,0.05674395]
[1734522425882,0.55259546,104820.0,104810.0,0.86504471]
[1734522426080,0.14508546,104820.0,104810.0,1.25854471]
[1734522426283,0.14508546,104820.0,104810.0,1.31786588]
[1734522426682,0.14508546,104820.0,104810.0,2.85146588]
[1734522427085,1.17787235,104840.0,104820.0,0.047708]
[1734522427286,1.17787235,104840.0,104830.0,0.047703]
[1734522427585,1.19680822,104840.0,104830.0,0.05673495]
[1734522428178,1.1989203,104840.0,104830.0,0.05673495]
[1734522428379,1.02758709,104840.0,104830.0,0.05673495]
[1734522429177,1.02758709,104840.0,104830.0,0.10577024]
[1734522429382,0.66678709,104840.0,104830.0,0.41753495]
[1734522429583,0.52380695,104840.0,104830.0,0.69391395]
[1734522429990,0.50487108,104840.0,104830.0,0.69391395]
[1734522430987,0.47147108,104840.0,104830.0,0.69391395]
[1734522431188,0.47147108,104840.0,104830.0,0.64490336]
[1734522431486,0.43677108,104840.0,104830.0,0.64490336]
[1734522431681,0.43677108,104840.0,104830.0,0.69388563]
[1734522431889,0.40237108,104840.0,104830.0,0.64490336]
[1734522432496,0.421799,104840.0,104830.0,0.64513628]
[1734522434684,0.421799,104840.0,104830.0,0.58785744]
[1734522435293,0.86999988,104840.0,104830.0,0.18388736]
[1734522435591,0.86999988,104840.0,104830.0,0.17935444]
[1734522436190,0.782599,104840.0,104830.0,0.17935444]
[1734522436385,1.16999988,104840.0,104830.0,0.17935444]
[1734522437089,1.16999988,104840.0,104830.0,0.17931444]
[1734522437284,0.047712,104810.0,104800.0,0.39896887]
[1734522437483,0.49602932,104810.0,104800.0,0.39896887]
[1734522437693,0.40870844,104810.0,104800.0,1.89896887]
[1734522438286,0.40870844,104810.0,104800.0,0.39896887]
[1734522438483,0.40870844,104810.0,104800.0,0.40496887]
[1734522438484,0.40970844,104810.0,104800.0,0.40496887]
[1734522438689,0.40970844,104810.0,104800.0,0.18060046]
[1734522439504,0.40970844,104810.0,104800.0,0.01043116]
[1734522439901,0.40970844,104810.0,104800.0,0.14554904]
[1734522440305,0.40970844,104810.0,104800.0,0.05814816]
[1734522445312,0.40970844,104810.0,104800.0,1.55814816]
[1734522446006,0.40970844,104810.0,104800.0,0.01043116]
[1734522446306,0.49710932,104810.0,104800.0,0.01043116]
[1734522447107,0.40970844,104810.0,104800.0,0.01043116]
[1734522447316,0.40970844,104810.0,104800.0,0.01601608]
[1734522448512,0.42402845,104810.0,104800.0,0.02055688]
[1734522448910,0.42402845,104810.0,104800.0,0.01601608]
[1734522449115,0.42402845,104810.0,104800.0,0.01950796]
[1734522449709,0.42402845,104810.0,104800.0,0.01602703]
[1734522449915,0.42402845,104810.0,104800.0,0.02406488]
[1734522451910,0.51142933,104810.0,104800.0,0.02406488]
[1734522452416,0.51142933,104810.0,104800.0,0.01952385]
[1734522452606,0.51142933,104810.0,104800.0,0.01043116]
[1734522452813,0.42402845,104810.0,104800.0,0.01950993]
[1734522455619,0.42402845,104810.0,104800.0,0.01950458]
[1734522458614,0.42402845,104810.0,104800.0,0.01951154]
[1734522460120,0.48140412,104810.0,104800.0,0.01951154]
[1734522461511,0.48140412,104810.0,104800.0,0.01951531]
[1734522462716,0.50095989,104810.0,104800.0,0.01951531]
[1734522463216,0.50095989,104810.0,104800.0,0.24688372]
[1734522464312,0.61602515,104810.0,104800.0,0.23479957]
[1734522464518,0.61602515,104810.0,104800.0,0.23788716]
[1734522466320,0.67340082,104810.0,104800.0,0.23788716]
[1734522466525,0.61602515,104810.0,104800.0,0.23788716]
[1734522466725,0.7023157,104810.0,104800.0,0.72459019]
[1734522467318,0.7023157,104810.0,104800.0,0.77365623]
[1734522467725,0.64494003,104810.0,104800.0,0.72459019]
[1734522467927,0.7023157,104810.0,104800.0,0.72459019]
[1734522468124,0.68799569,104810.0,104800.0,0.72459019]
[1734522468425,0.63062002,104810.0,104800.0,0.72459019]
[1734522468726,0.64494003,104810.0,104800.0,0.72459019]
[1734522469026,0.81627324,104810.0,104800.0,0.23788716]
[1734522471024,0.87364891,104810.0,104800.0,0.236456]
[1734522471628,0.87364891,104810.0,104800.0,0.24101341]
[1734522472519,0.73066877,104810.0,104800.0,0.013645]
[1734522472715,0.73066877,104810.0,104790.0,0.54412996]
[1734522472922,0.66363143,104810.0,104800.0,0.00809337]
[1734522473121,1.02435143,104810.0,104800.0,0.01375317]
[1734522473320,1.02435143,104810.0,104800.0,0.01375379]
[1734522474018,1.18255143,104810.0,104800.0,0.01375379]
[1734522474224,1.29730277,104810.0,104800.0,0.01375379]
[1734522474827,1.29630277,104810.0,104800.0,0.00919698]
[1734522475029,1.29730277,104810.0,104800.0,0.01375379]
[1734522475723,1.29730277,104810.0,104800.0,0.00919698]
[1734522476230,1.29730277,104810.0,104800.0,0.00918989]
[1734522480031,1.29730277,104810.0,104800.0,0.01374467]
[1734522480634,1.44023056,104810.0,104800.0,0.01374467]
[1734522483128,1.44023056,104810.0,104800.0,0.00918989]
[1734522483325,1.32547922,104810.0,104800.0,0.01374467]
[1734522483519,1.44023056,104810.0,104800.0,0.01374467]
[1734522483729,1.44023056,104810.0,104800.0,0.00918989]
[1734522484633,1.29730277,104810.0,104800.0,0.00918989]
[1734522487128,1.29730277,104810.0,104800.0,0.01374467]
[1734522490032,1.18255143,104810.0,104800.0,0.01374467]
[1734522490232,1.29730277,104810.0,104800.0,0.01374467]
[1734522490430,1.2399271,104810.0,104800.0,0.04318989]
[1734522490634,1.29730277,104810.0,104800.0,0.11318989]
[1734522490939,1.2399271,104810.0,104800.0,0.11797307]
[1734522491239,1.29730277,104810.0,104800.0,0.11797307]
[1734522491728,1.29730277,104810.0,104800.0,0.12523717]
[1734522493740,1.29730277,104810.0,104800.0,0.11798711]
[1734522496639,1.29730277,104810.0,104800.0,0.11798082]
[1734522498840,1.29730277,104810.0,104800.0,0.12525106]
[1734522499144,0.89504965,104810.0,104800.0,0.22579708]
[1734522499446,0.3608,104820.0,104810.0,0.047712]
[1734522499634,0.83169021,104830.0,104820.0,0.047708]
[1734522499944,0.83169021,104830.0,104820.0,0.21945004]
[1734522499945,0.83121021,104830.0,104820.0,0.21945004]
[1734522500237,0.83121021,104830.0,104820.0,0.17174204]
[1734522500238,1.21101362,104830.0,104820.0,0.17174204]
[1734522500444,1.2111238,104830.0,104820.0,0.17174204]
[1734522500643,1.2121238,104830.0,104820.0,0.17174204]
[1734522500836,0.8513238,104830.0,104820.0,0.17174204]
[1734522501136,1.2121238,104830.0,104820.0,0.17174204]
[1734522501345,1.09673157,104830.0,104820.0,0.39911045]
[1734522501543,1.09673157,104830.0,104820.0,0.34997282]
[1734522502347,0.95385529,104830.0,104820.0,0.12260441]
[1734522505033,0.95385529,104830.0,104820.0,0.12281289]
[1734522505742,0.95385529,104830.0,104820.0,0.12734553]
[1734522508239,0.9681753,104830.0,104820.0,0.12734553]
[1734522508438,0.95385529,104830.0,104820.0,0.12734553]
[1734522508641,0.9681753,104830.0,104820.0,0.12734553]
[1734522510353,0.85387427,104830.0,104820.0,0.12734553]
[1734522510741,0.7964986,104830.0,104820.0,0.12734553]
[1734522510943,0.85387427,104830.0,104820.0,0.12734553]
[1734522511550,0.85387427,104830.0,104820.0,0.12732465]
[1734522512457,0.85387427,104830.0,104820.0,0.12279535]
[1734522513552,0.91124994,104830.0,104820.0,0.05139535]
[1734522513753,0.91124994,104830.0,104820.0,0.05587032]
[1734522513754,0.85387427,104830.0,104820.0,0.05587032]
[1734522514257,0.9681753,104830.0,104820.0,0.05587032]
[1734522515157,1.05371139,104830.0,104820.0,0.05587032]
[1734522516753,1.05371139,104830.0,104820.0,0.05587016]
[1734522517352,0.9681753,104830.0,104820.0,0.05587016]
[1734522517847,0.9681753,104830.0,104820.0,0.05134013]
[1734522519655,0.9681753,104830.0,104820.0,0.05587016]
[1734522522146,0.9681753,104830.0,104820.0,0.05596581]
[1734522524157,0.9681753,104830.0,104820.0,0.0514171]
[1734522525357,1.09204817,104830.0,104820.0,0.04407587]
[1734522525562,1.09204817,104830.0,104820.0,0.05144366]
[1734522525954,1.09204817,104830.0,104820.0,0.0559965]
[1734522526259,1.0346725,104830.0,104820.0,0.1037045]
[1734522526458,0.97264749,104830.0,104820.0,0.22532733]
[1734522526645,0.90604946,104830.0,104820.0,0.22532733]
[1734522526958,0.96342513,104830.0,104820.0,0.21699768]
[1734522527160,0.90604946,104830.0,104820.0,0.21699768]
[1734522527563,0.96342513,104830.0,104820.0,0.21699768]
[1734522527755,0.90625091,104830.0,104820.0,0.44436609]
[1734522528460,0.90383259,104830.0,104820.0,0.44440257]
[1734522529050,0.90283259,104830.0,104820.0,0.44440257]
[1734522529251,0.90283259,104830.0,104820.0,0.92996125]
[1734522529252,1.0181493,104830.0,104820.0,0.92996125]
[1734522529960,1.0281493,104830.0,104820.0,0.92996125]
[1734522530451,1.0281493,104830.0,104820.0,2.42996125]
[1734522530761,1.08532352,104830.0,104820.0,1.94440257]
[1734522530960,1.08532352,104830.0,104820.0,1.95409136]
[1734522531562,0.72452352,104830.0,104820.0,1.96515366]
[1734522532260,0.72452352,104830.0,104820.0,1.95409136]
[1734522532962,0.58164724,104830.0,104820.0,2.41166468]
[1734522533166,0.58164724,104830.0,104820.0,2.40231049]
[1734522533354,0.58164724,104830.0,104820.0,2.41166461]
[1734522534163,0.58164724,104830.0,104820.0,1.94286798]
[1734522534359,0.58164724,104830.0,104820.0,1.94286763]
[1734522534661,0.58164724,104830.0,104820.0,1.94646478]
[1734522536859,0.58164724,104830.0,104820.0,1.94644888]
[1734522537261,0.94244724,104830.0,104820.0,1.93711122]
[1734522537458,0.58064724,104830.0,104820.0,1.94628829]
[1734522537662,0.58164724,104830.0,104820.0,1.94628829]
[1734522538065,0.58164724,104830.0,104820.0,1.94628826]
[1734522539964,0.56259616,104830.0,104820.0,1.94628826]
[1734522540654,0.92339616,104830.0,104820.0,1.94628826]
[1734522541159,0.56259616,104830.0,104820.0,1.94628826]
[1734522541363,0.92339616,104830.0,104820.0,1.94628826]
[1734522542161,0.92239616,104830.0,104820.0,1.94628826]
[1734522542361,0.92139616,104830.0,104820.0,1.94628826]
[1734522542565,0.94059088,104830.0,104820.0,1.94628826]
[1734522543557,0.57979088,104830.0,104820.0,1.94628826]
[1734522543758,0.57979088,104830.0,104820.0,1.94624098]
[1734522543955,0.55832179,104830.0,104820.0,1.94624098]
[1734522544368,0.01919472,104830.0,104820.0,0.92179232]
[1734522544563,0.32358861,104840.0,104820.0,0.96950032]
[1734522544762,0.32358861,104840.0,104830.0,0.10507867]
[1734522544964,0.32358861,104840.0,104830.0,1.66329445]
[1734522545364,0.323704,104840.0,104830.0,1.66329445]
[1734522545567,0.00966096,104840.0,104830.0,1.89066286]
[1734522546661,0.00966096,104840.0,104830.0,1.89055358]
[1734522547672,0.00966096,104840.0,104830.0,0.28547491]
[1734522547673,0.5329103,104840.0,104830.0,0.28547491]
[1734522547863,0.5674103,104840.0,104830.0,0.28547491]
[1734522548067,0.5674103,104840.0,104830.0,0.23642889]
[1734522548774,0.58173031,104840.0,104830.0,0.23642889]
[1734522549365,0.72460659,104840.0,104830.0,0.28552463]
[1734522549573,0.72460659,104840.0,104830.0,0.23642647]
[1734522550272,0.73460659,104840.0,104830.0,0.23642647]
[1734522550679,0.73460659,104840.0,104830.0,0.00905806]
[1734522551166,0.70010659,104840.0,104830.0,0.00905806]
[1734522551374,0.52333724,104840.0,104830.0,0.11413673]
[1734522551573,0.16253724,104840.0,104830.0,0.19813356]
[1734522552470,0.16253724,104840.0,104830.0,0.19815268]
[1734522553067,0.15299167,104840.0,104830.0,0.19815268]
[1734522553279,0.05781339,104840.0,104830.0,0.36814542]
[1734522554775,0.20068967,104840.0,104830.0,0.36814542]
[1734522554972,0.20068967,104840.0,104830.0,1.86814542]
[1734522555184,0.25806534,104840.0,104830.0,1.81904859]
[1734522555376,0.25806534,104840.0,104830.0,1.81904894]
[1734522556375,0.20068967,104840.0,104830.0,1.81904894]
[1734522556776,0.20068967,104840.0,104830.0,1.81905095]
[1734522556978,0.05781339,104840.0,104830.0,1.81905095]
[1734522558281,0.05781339,104840.0,104830.0,1.582643]
[1734522558481,0.05781339,104840.0,104830.0,1.59168353]
[1734522559483,0.05781339,104840.0,104830.0,1.64080274]
[1734522559877,0.05781339,104840.0,104830.0,1.69817841]
[1734522560377,0.20068967,104840.0,104830.0,1.92588401]
[1734522560577,0.15299167,104840.0,104830.0,2.28668401]
[1734522561475,0.13152547,104840.0,104830.0,2.28668401]
[1734522561782,0.90204787,104850.0,104840.0,0.047698]
[1734522562078,0.90204787,104850.0,104840.0,0.23127341]
[1734522562582,0.90215753,104850.0,104840.0,0.23127341]
[1734522562986,0.49366253,104850.0,104840.0,0.68704104]
[1734522563181,0.14122253,104850.0,104840.0,1.04784104]
[1734522563582,0.14122253,104850.0,104840.0,2.54784104]
[1734522564488,0.14122253,104850.0,104840.0,2.55828212]
[1734522564784,0.00969706,104850.0,104840.0,2.67140426]
[1734522564980,0.00969706,104850.0,104840.0,2.67157029]
[1734522565779,0.00969706,104850.0,104840.0,2.85029876]
[1734522566087,0.00010966,104850.0,104840.0,2.85029876]
[1734522566291,0.00010966,104850.0,104840.0,2.83985768]
[1734522566973,0.04780366,104850.0,104840.0,2.78248201]
[1734522568377,0.04780366,104850.0,104840.0,2.31989199]
[1734522569887,0.04780366,104850.0,104840.0,2.31988182]
[1734522570586,0.05718877,104850.0,104840.0,2.31988182]
[1734522570989,0.05718877,104850.0,104840.0,2.32951065]
[1734522571673,0.05718877,104850.0,104840.0,0.77213498]
[1734522571873,0.05718877,104850.0,104840.0,0.36363698]
[1734522571874,0.47536444,104850.0,104840.0,0.36363698]
[1734522572184,0.41798877,104850.0,104840.0,0.42101265]
[1734522572383,0.47536444,104850.0,104840.0,0.36363698]
[1734522572585,0.47536444,104850.0,104840.0,0.35400815]
[1734522573185,0.50846444,104850.0,104840.0,0.35400815]
[1734522573387,0.50846444,104850.0,104840.0,0.26378957]
[1734522573775,0.56584011,104850.0,104840.0,0.17977036]
[1734522573981,0.59994011,104850.0,104840.0,0.18431988]
[1734522574179,0.54256444,104850.0,104840.0,0.17977036]
[1734522574982,0.54256444,104850.0,104840.0,0.00923639]
[1734522574983,0.7137312,104850.0,104840.0,0.00923639]
[1734522575283,0.77110687,104850.0,104840.0,0.01378591]
[1734522575489,0.7137312,104850.0,104840.0,0.01378591]
[1734522575681,0.77110687,104850.0,104840.0,0.00925604]
[1734522576082,0.77110687,104850.0,104840.0,0.01380635]
[1734522576287,0.77110687,104850.0,104840.0,0.01380598]
[1734522576896,0.7137312,104850.0,104840.0,0.01380598]
[1734522577082,0.77110687,104850.0,104840.0,0.01380598]
[1734522577283,0.77110687,104850.0,104840.0,0.00925578]
[1734522581395,0.77110687,104850.0,104840.0,0.00923982]
[1734522582478,1.07110687,104850.0,104840.0,0.0056618]
[1734522582680,1.07110687,104850.0,104820.0,0.07393827]
[1734522582681,0.047703,104830.0,104820.0,0.00463827]
[1734522582979,0.047708,104820.0,104810.0,0.40273719]
[1734522583179,0.65103501,104820.0,104810.0,0.40273719]
[1734522583384,0.65103501,104820.0,104810.0,0.39818652]
[1734522583587,0.59365934,104820.0,104810.0,0.39818652]
[1734522583787,0.59365934,104820.0,104800.0,0.43248652]
[1734522584084,0.49610361,104810.0,104800.0,0.43248652]
[1734522584894,0.40866451,104810.0,104800.0,0.082017]
[1734522585212,0.40866451,104810.0,104800.0,0.116117]
[1734522585379,0.00015251,104810.0,104800.0,0.117117]
[1734522585588,0.00015251,104810.0,104800.0,0.2075561]
[1734522585791,0.00015251,104810.0,104800.0,0.5683561]
[1734522586095,0.00015251,104810.0,104800.0,0.2075561]
[1734522586293,0.00015251,104810.0,104800.0,0.25656866]
[1734522586487,0.00015251,104810.0,104800.0,0.61736866]
[1734522586792,0.00015251,104810.0,104800.0,0.52992956]
[1734522587388,0.00015251,104810.0,104800.0,0.70046353]
[1734522588586,0.04786451,104810.0,104800.0,0.70046353]
[1734522589595,0.04786451,104810.0,104800.0,2.20046353]
[1734522589899,0.04786451,104810.0,104800.0,2.21021211]
[1734522590393,0.13530361,104810.0,104800.0,0.58434653]
[1734522590583,0.04786451,104810.0,104800.0,0.58305097]
[1734522591187,0.40866451,104810.0,104800.0,0.17453397]
[1734522591389,0.49610361,104810.0,104800.0,0.17453397]
[1734522591591,0.49610361,104810.0,104800.0,0.1790763]
[1734522592588,0.49610361,104810.0,104800.0,0.15359359]
[1734522593098,0.49610361,104810.0,104800.0,0.14905126]
[1734522593500,0.49610361,104810.0,104800.0,0.00561729]
[1734522593798,0.40866451,104810.0,104800.0,0.00561729]
[1734522593994,0.04786451,104810.0,104800.0,0.05787662]
[1734522594498,0.40866451,104810.0,104800.0,0.047717]
[1734522595404,0.40866451,104810.0,104800.0,0.06138939]
[1734522596295,0.40866451,104810.0,104800.0,0.06139263]
[1734522599393,0.36095251,104810.0,104800.0,0.06139263]
[1734522599599,0.00015251,104810.0,104800.0,0.50508976]
[1734522599998,0.00015251,104810.0,104800.0,2.00508976]
[1734522600300,0.00015251,104810.0,104800.0,1.91765066]
[1734522601602,0.00015251,104810.0,104800.0,1.96661739]
[1734522601995,0.408508,104820.0,104810.0,0.047712]
[1734522602196,0.408508,104820.0,104810.0,0.12744566]
[1734522602497,0.408508,104820.0,104810.0,0.12748566]
[1734522602898,0.40857952,104820.0,104810.0,0.12748566]
[1734522603400,0.40857952,104820.0,104810.0,0.21492476]
[1734522603401,0.00107152,104820.0,104810.0,0.21492476]
[1734522603598,0.00107152,104820.0,104810.0,0.57572476]
[1734522603993,0.00107152,104820.0,104810.0,0.6247128]
[1734522604196,0.00207152,104820.0,104810.0,0.6247128]
[1734522604604,0.00207152,104820.0,104810.0,0.85236535]
[1734522605001,0.00207152,104820.0,104810.0,1.15229935]
[1734522605198,0.55089508,104840.0,104830.0,0.1351421]
[1734522605395,0.14239508,104840.0,104830.0,0.50500976]
[1734522605702,0.25655711,104840.0,104830.0,2.12166423]
[1734522606004,0.25655711,104840.0,104830.0,2.13210531]
[1734522606200,0.25655711,104840.0,104830.0,2.12166423]
[1734522606602,0.25764876,104840.0,104830.0,2.12166423]
[1734522606804,0.25764876,104840.0,104830.0,2.13210531]
[1734522607002,0.25764876,104840.0,104830.0,2.12166423]
[1734522607201,0.00109165,104840.0,104830.0,2.63273792]
[1734522608209,0.00109165,104840.0,104830.0,2.66863792]
[1734522608806,0.00109165,104840.0,104830.0,0.88477637]
[1734522609197,0.00109165,104840.0,104830.0,2.38477637]
[1734522610105,0.18062487,104860.0,104840.0,0.047698]
[1734522610300,0.16185303,104860.0,104850.0,0.24387275]
[1734522610498,0.16185303,104860.0,104850.0,0.25314486]
[1734522610904,0.11416203,104860.0,104850.0,0.60940713]
[1734522611103,0.11424414,104860.0,104850.0,0.65838272]
[1734522611303,8.211e-05,104860.0,104850.0,0.65838272]